[Event "Polish Youth G16 Championship 2023"]
[Site "Jastrzebia Gora"]
[Date "2023.03.18"]
[Round "8.5"]
[White "Siekanska, Maria"]
[Black "Zapalowska, Wiktoria"]
[Result "1-0"]
[ECO "D20"]
[WhiteElo "1996"]
[BlackElo "1639"]
[Annotator "TA"]
[PlyCount "83"]
[EventDate "2023.03.11"]
[EventType "swiss"]
[EventCountry "POL"]
[SourceTitle "playchess.com"]
[Source "ChessBase"]
[SourceQuality "1"]
[TimeControl "40/5400+30:1800+30"]

{[%evp 22,83,0,0,6,0,0,0,0,-19,-14,-16,0,-34,-25,-31,-33,-26,-17,-10,-4,-1,-6,0,2,-10,0,0,0,0,12,17,25,18,50,51,78,80,264,264,255,243,264,264,268,251,278,262,270,191,213,213,627,608,904,870,29970,29957,29988,29989,29989,29989,29990,29988]} 1. d4 {[%emt 0:00:02]} d5 {[%emt 0:00:21]} 2. c4 {[%emt 0:00:07]} dxc4 {[%emt 0:00:17]} 3. e3 {[%emt 0:00:05]} Nf6 {[%emt 0:00:12]} 4. Bxc4 {[%emt 0:00:19]} e6 {[%emt 0:00:18]} 5. Nf3 {[%emt 0:00:12]} a6 {[%emt 0:00:14]} 6. a4 {[%emt 0:03:56]} c5 {[%emt 0:00:51]} 7. O-O {[%emt 0:00:12]} Nc6 {[%emt 0:01:24]} 8. Nc3 {[%emt 0:00:15]} cxd4 {[%emt 0:00:30]} 9. exd4 {[%emt 0:00:06]} Be7 {[%emt 0:00:57]} 10. Re1 {[%emt 0:03:24]} O-O {[%emt 0:01:26]} 11. Bg5 {[%emt 0:01:12] 11.Bf4 is the modern continuation.} h6 {[%emt 0:04:21]} 12. Bh4 {[%emt 0:01:30]} Bd7 {[%emt 0:02:23] D27: Queen's Gambit Accepted: Classical main line: 7 e4!? and 7 a4.} 13. Qe2 {[%emt 0:07:10]} Nh5 {[%emt 0:02:15]} 14. Bxe7 {[%emt 0:03:06]} Nxe7 {[%emt 0:00:07] The position is equal.} 15. Rad1 {[%emt 0:06:18]} Nf6 {[%emt 0:10:40]} (15... Bc6 {is more complex.} 16. Ne5 Nf4 17. Qd2 Nfd5) 16. Ne5 {[%emt 0:02:24] [#]} Be8 $146 {[%emt 0:05:22] Wards off d5} ({Predecessor:} 16... Qc7 17. Ba2 Rad8 18. Qd3 Bc6 19. Qc4 Rd6 20. b4 Qd8 21. b5 Bd5 22. Nxd5 Nexd5 {½-½ Reinderman,D (2539)-Iordachescu,V (2589) EU-ch 2nd Ohrid 2001 (10)}) 17. Qf3 {[%emt 0:09:04]} Bc6 {[%emt 0:06:51]} 18. Nxc6 {[%emt 0:02:17]} bxc6 {[%emt 0:00:21]} 19. Ne4 {[%emt 0:08:22]} Ned5 {[%emt 0:10:31]} 20. Nc5 {[%emt 0:03:47]} Qb6 {[%emt 0:00:59]} 21. b3 {[%emt 0:02:06]} a5 {[%emt 0:03:51]} 22. h4 {[%emt 0:08:17]} Ra7 {[%emt 0:03:21]} 23. Bd3 {[%emt 0:03:24]} Nd7 {[%emt 0:04:13]} 24. Rc1 {[%emt 0:02:32]} Nxc5 {[%emt 0:06:00]} 25. Rxc5 {[%emt 0:00:19]} Rc8 {[%emt 0:01:17]} 26. Rec1 {[%emt 0:00:39][%cal Oc5d5]} Rac7 {[%emt 0:00:47]} 27. Be4 {[%emt 0:03:21]} Nb4 {[%emt 0:04:03]} 28. Bb1 {[%emt 0:01:01]} Na6 {[%emt 0:01:23] [#]} 29. R5c4 {[%emt 0:02:13] Qe4 is the strong threat. White is more active.} Nb4 $2 {[%emt 0:06:06] This move loses the game for Black.} (29... Kf8 $16 {was worth a try.}) 30. Qe4 $18 {[%emt 0:00:59]} g6 {[%emt 0:06:11] [#]} 31. h5 $1 {[%emt 0:01:06][%mdl 512]} gxh5 {[%emt 0:00:58]} (31... Re8 32. hxg6) 32. Qh7+ {[%emt 0:00:49]} Kf8 {[%emt 0:00:03]} 33. Qxh6+ {[%emt 0:00:10]} Ke8 {[%emt 0:01:29]} 34. Qxh5 {[%emt 0:01:18]} Nd5 {[%emt 0:01:00]} 35. Qf3 {[%emt 0:04:22]} c5 {[%emt 0:06:09]} 36. Be4 {[%emt 0:03:16] And now dxc5 would win.} Nb4 $2 {[%emt 0:01:56]} (36... cxd4 37. Bxd5 exd5 38. Qxd5 Rxc4 39. bxc4 Kf8) 37. Qg3 {[%emt 0:00:53] Hoping for Qg8+.} Na6 {[%emt 0:03:30]} 38. d5 {[%emt 0:00:55]} exd5 {[%emt 0:03:14]} 39. Bxd5 {[%emt 0:00:12] White mates.} Re7 {[%emt 0:02:42] Black is weak on the light squares} 40. Rd1 {[%emt 0:00:00]} Qh6 {[%emt 0:00:00]} 41. Rh4 {[%emt 0:01:32]} Qf8 {[%emt 0:05:10]} 42. Qh3 {[%emt 0:00:08][%mdl 64] Decoy.   Weighted Error Value: White=0.06 (flawless) /Black=0.51} 1-0

[Event "Polish Youth G16 Championship 2023"]
[Site "Jastrzebia Gora"]
[Date "2023.03.18"]
[Round "8.6"]
[White "Salamon, Julia"]
[Black "Oborska, Magda"]
[Result "1/2-1/2"]
[ECO "E50"]
[WhiteElo "1701"]
[BlackElo "1613"]
[Annotator "NA RC COMBH"]
[PlyCount "91"]
[EventDate "2023.03.11"]
[EventType "swiss"]
[EventCountry "POL"]
[SourceTitle "playchess.com"]
[Source "ChessBase"]
[SourceQuality "1"]
[TimeControl "40/5400+30:1800+30"]

1. d4 {[%emt 0:00:01]} Nf6 {[%emt 0:00:55]} 2. c4 {[%emt 0:00:03]} e6 {[%emt 0:00:06]} 3. Nc3 {[%emt 0:00:06]} Bb4 {[%emt 0:00:19]} 4. Nf3 {[%emt 0:00:59]} O-O {[%emt 0:00:15]} 5. e3 {[%emt 0:00:03]} b6 {[%emt 0:00:07]} 6. Bd3 {[%emt 0:00:04]} Bb7 {[%emt 0:00:09]} 7. O-O {[%emt 0:02:25]} d5 {[%emt 0:01:30]} 8. a3 {[%emt 0:05:08]} Bxc3 {[%emt 0:00:19]} 9. bxc3 {[%emt 0:00:04]} dxc4 {[%emt 0:00:15]} 10. Bxc4 {[%emt 0:00:07]} c5 {[%emt 0:01:17]} 11. Qe2 {[%emt 0:09:25]} Qc7 {[%emt 0:00:25]} 12. Ne5 {[%emt 0:06:23]} Nbd7 {[%emt 0:03:36]} 13. Nxd7 {[%emt 0:13:31]} Qxd7 {[%emt 0:00:59]} 14. Rd1 {[%emt 0:00:59]} Qc7 {[%emt 0:00:17]} 15. Bb2 {[%emt 0:03:39]} Rac8 {[%emt 0:03:04]} 16. Rac1 {[%emt 0:00:05]} Rfd8 {[%emt 0:06:42]} 17. f3 {[%emt 0:06:01]} Qe7 {[%emt 0:11:02]} 18. e4 {[%emt 0:03:37]} Nh5 {[%emt 0:08:09]} 19. Qe3 {[%emt 0:00:09]} Nf6 {[%emt 0:23:28]} 20. Qe2 {[%emt 0:07:13]} Nh5 {[%emt 0:00:23]} 21. Qe3 {[%emt 0:07:17]} Nf6 {[%emt 0:00:08]} 22. Qg5 {[%emt 0:02:08]} Nd5 {[%emt 0:01:44]} 23. Qd2 {[%emt 0:03:04]} Nf6 {[%emt 0:00:24]} 24. Qg5 {[%emt 0:00:02]} Nd5 {[%emt 0:00:06]} 25. Qd2 {[%emt 0:00:07]} Nf6 {[%emt 0:00:07]} 26. Qe2 {[%emt 0:00:03]} Nh5 {[%emt 0:00:30]} 27. Qe3 {[%emt 0:00:29]} Nf6 {[%emt 0:00:07]} 28. Qe2 {[%emt 0:01:07]} Nh5 {[%emt 0:00:07]} 29. Qe3 {[%emt 0:00:01]} Nf6 {[%emt 0:00:07]} 30. Rd2 {[%emt 0:04:34]} Rc7 {[%emt 0:09:40]} 31. Rdc2 {[%emt 0:01:19]} Rcc8 {[%emt 0:00:24]} 32. e5 {[%emt 0:03:20]} Nd5 {[%emt 0:00:58]} 33. Bxd5 {[%emt 0:01:47]} Bxd5 {[%emt 0:01:10]} 34. c4 {[%emt 0:00:04]} Bb7 {[%emt 0:00:49]} 35. Rd2 {[%emt 0:03:25]} Rd7 {[%emt 0:02:13]} 36. dxc5 {[%emt 0:06:47]} Rxd2 {[%emt 0:02:32]} 37. Qxd2 {[%emt 0:00:04]} Qxc5+ {[%emt 0:00:18]} 38. Qd4 {[%emt 0:01:24]} Qxd4+ {[%emt 0:00:57]} 39. Bxd4 {[%emt 0:01:55]} Rd8 {[%emt 0:00:58]} 40. Bf2 {[%emt 0:00:00]} h6 {[%emt 0:00:00]} 41. c5 {[%emt 0:00:24]} Rc8 {[%emt 0:01:44]} 42. Be3 {[%emt 0:00:07]} bxc5 {[%emt 0:00:26]} 43. Rxc5 {[%emt 0:00:10]} Rxc5 {[%emt 0:00:06]} 44. Bxc5 {[%emt 0:00:05]} a6 {[%emt 0:00:10]} 45. Kf2 {[%emt 0:00:40]} f6 {[%emt 0:00:20]} 46. f4 {[%emt 0:01:25]} 1/2-1/2

[Event "Polish Youth G16 Championship 2023"]
[Site "Jastrzebia Gora"]
[Date "2023.03.18"]
[Round "8.7"]
[White "Szopa, Emilia"]
[Black "Giemza, Julia"]
[Result "1-0"]
[ECO "B47"]
[WhiteElo "1709"]
[BlackElo "1536"]
[Annotator "NA RC COMBH"]
[PlyCount "71"]
[EventDate "2023.03.11"]
[EventType "swiss"]
[EventCountry "POL"]
[SourceTitle "playchess.com"]
[Source "ChessBase"]
[SourceQuality "1"]
[TimeControl "40/5400+30:1800+30"]

1. e4 {[%emt 0:00:04]} c5 {[%emt 0:00:05]} 2. Nf3 {[%emt 0:00:49]} e6 {[%emt 0:00:08]} 3. d4 {[%emt 0:01:02]} cxd4 {[%emt 0:00:06]} 4. Nxd4 {[%emt 0:00:18]} Nc6 {[%emt 0:00:07]} 5. Nc3 {[%emt 0:02:14]} Qc7 {[%emt 0:00:21]} 6. f4 {[%emt 0:04:18]} a6 {[%emt 0:01:40]} 7. Nxc6 {[%emt 0:02:51]} Qxc6 {[%emt 0:01:32]} 8. Bd3 {[%emt 0:01:42]} Bc5 {[%emt 0:10:18]} 9. Qe2 {[%emt 0:02:27]} Ne7 {[%emt 0:02:05]} 10. Bd2 {[%emt 0:03:31]} d6 {[%emt 0:04:17]} 11. f5 {[%emt 0:04:19]} Bd7 {[%emt 0:03:33]} 12. O-O-O {[%emt 0:03:31]} O-O-O {[%emt 0:04:30]} 13. Qg4 {[%emt 0:02:46]} Rdg8 {[%emt 0:09:46]} 14. Bg5 {[%emt 0:02:30]} d5 {[%emt 0:07:49]} 15. Bxe7 {[%emt 0:06:56]} Bxe7 {[%emt 0:00:16]} 16. exd5 {[%emt 0:01:27]} exd5 {[%emt 0:00:22]} 17. Qf3 {[%emt 0:04:52]} Bg5+ {[%emt 0:07:33]} 18. Kb1 {[%emt 0:00:40]} d4 {[%emt 0:00:57]} 19. Be4 {[%emt 0:02:05]} Qb6 {[%emt 0:01:23]} 20. Nd5 {[%emt 0:01:58]} Qc5 {[%emt 0:02:45]} 21. b4 {[%emt 0:02:42]} Qa7 {[%emt 0:03:17]} 22. Qg3 {[%emt 0:02:22]} Bd8 {[%emt 0:00:54]} 23. Qd6 {[%emt 0:01:24]} Bc6 {[%emt 0:05:42]} 24. Rxd4 {[%emt 0:03:10]} Re8 {[%emt 0:04:28]} 25. f6 {[%emt 0:04:27]} g6 {[%emt 0:04:23]} 26. Bf3 {[%emt 0:05:06]} h5 {[%emt 0:01:20]} 27. Ne7+ {[%emt 0:13:09]} Bxe7 {[%emt 0:00:38]} 28. fxe7 {[%emt 0:00:08]} Qb8 {[%emt 0:00:42]} 29. Qf6 {[%emt 0:03:47]} Qc7 {[%emt 0:00:30]} 30. Bxc6 {[%emt 0:00:55]} Qxc6 {[%emt 0:00:21]} 31. Qf4 {[%emt 0:03:56]} b5 {[%emt 0:01:18]} 32. Qxf7 {[%emt 0:01:34]} Qb6 {[%emt 0:01:33]} 33. Rhd1 {[%emt 0:00:21]} g5 {[%emt 0:01:21]} 34. Qf5+ {[%emt 0:00:30]} Kb7 {[%emt 0:00:55]} 35. Qe4+ {[%emt 0:00:51]} Kc7 {[%emt 0:00:32]} 36. Rd7+ {[%emt 0:00:25]} 1-0

[Event "Polish Youth G16 Championship 2023"]
[Site "Jastrzebia Gora"]
[Date "2023.03.18"]
[Round "8.8"]
[White "Pastuszko, Katarzyna"]
[Black "Lazniewska, Zofia"]
[Result "0-1"]
[ECO "B36"]
[WhiteElo "1286"]
[BlackElo "1621"]
[Annotator "NA RC COMBH"]
[PlyCount "102"]
[EventDate "2023.03.11"]
[EventType "swiss"]
[EventCountry "POL"]
[SourceTitle "playchess.com"]
[Source "ChessBase"]
[SourceQuality "1"]
[TimeControl "40/5400+30:1800+30"]

1. e4 {[%emt 0:00:04]} c5 {[%emt 0:00:04]} 2. Nf3 {[%emt 0:00:10]} Nc6 {[%emt 0:00:03]} 3. d4 cxd4 {[%emt 0:00:04]} 4. Nxd4 {[%emt 0:00:20]} g6 {[%emt 0:00:06]} 5. c4 {[%emt 0:00:19]} Nf6 6. Nc3 {[%emt 0:00:40]} d6 {[%emt 0:00:21]} 7. Be3 {[%emt 0:00:40]} Ng4 {[%emt 0:01:39]} 8. Nd5 {[%emt 0:15:56]} Nxe3 {[%emt 0:01:02]} 9. Nxe3 {[%emt 0:02:51]} Bg7 {[%emt 0:00:58]} 10. Nxc6 {[%emt 0:01:37]} bxc6 {[%emt 0:00:10]} 11. Qd2 {[%emt 0:01:41]} O-O {[%emt 0:07:53]} 12. Be2 {[%emt 0:03:56]} Rb8 {[%emt 0:03:21]} 13. Rb1 {[%emt 0:03:24]} Qb6 {[%emt 0:07:19]} 14. b4 {[%emt 0:02:48]} Be6 {[%emt 0:05:19]} 15. O-O {[%emt 0:02:27]} Rfd8 {[%emt 0:03:55]} 16. a4 {[%emt 0:06:41]} Qa6 {[%emt 0:06:47]} 17. Qc2 {[%emt 0:04:39]} Qb7 {[%emt 0:01:16]} 18. Rfc1 {[%emt 0:04:54]} Rbc8 {[%emt 0:01:05]} 19. Qd2 {[%emt 0:02:26]} Bh6 {[%emt 0:05:17]} 20. a5 {[%emt 0:05:49]} Rb8 {[%emt 0:05:51]} 21. Qd4 {[%emt 0:06:58]} c5 {[%emt 0:15:20]} 22. bxc5 {[%emt 0:01:36]} Bxe3 {[%emt 0:00:20]} 23. Qxe3 {[%emt 0:01:25]} Qxb1 {[%emt 0:00:00]} 24. Rxb1 {[%emt 0:03:29]} Rxb1+ 25. Bf1 {[%emt 0:00:12]} Bxc4 {[%emt 0:00:40]} 26. h3 {[%emt 0:00:16]} Bxf1 {[%emt 0:03:26]} 27. Kh2 {[%emt 0:01:41]} a6 {[%emt 0:06:13]} 28. c6 {[%emt 0:03:30]} Rc8 {[%emt 0:00:47]} 29. e5 {[%emt 0:08:18]} dxe5 {[%emt 0:04:58]} 30. Qc5 {[%emt 0:01:01]} Rc7 {[%emt 0:04:25]} 31. Qxe5 {[%emt 0:06:24]} Rxc6 {[%emt 0:00:48]} 32. Qxe7 {[%emt 0:00:29]} Rc8 {[%emt 0:00:11]} 33. Qd7 {[%emt 0:00:49]} Rbc1 {[%emt 0:00:37]} 34. Qb7 {[%emt 0:00:22]} R1c5 {[%emt 0:01:59]} 35. Qb4 {[%emt 0:00:46]} Bb5 {[%emt 0:01:46]} 36. Qd4 {[%emt 0:01:31]} Be8 {[%emt 0:02:45]} 37. Qb4 {[%emt 0:00:38]} Bb5 {[%emt 0:03:18]} 38. Qd4 {[%emt 0:00:44]} Rc4 {[%emt 0:00:19]} 39. Qb6 {[%emt 0:00:50]} Ra4 {[%emt 0:02:37]} 40. Qb7 {[%emt 0:00:00]} Re8 {[%emt 0:00:00]} 41. Qb6 {[%emt 0:02:37]} Ra2 {[%emt 0:03:11]} 42. Kg3 {[%emt 0:01:32]} h6 {[%emt 0:02:34]} 43. Qc7 {[%emt 0:01:31]} Ree2 {[%emt 0:01:07]} 44. Qd8+ {[%emt 0:00:54]} Kh7 {[%emt 0:03:52]} 45. Qf8 {[%emt 0:03:09]} Rxf2 {[%emt 0:00:24]} 46. Qa8 {[%emt 0:00:52]} Rxg2+ {[%emt 0:00:15]} 47. Kf3 {[%emt 0:00:17]} Rgf2+ {[%emt 0:01:37]} 48. Ke3 {[%emt 0:00:22]} Rf5 {[%emt 0:00:44]} 49. Qb7 {[%emt 0:00:40]} Rxa5 {[%emt 0:01:08]} 50. Qb6 {[%emt 0:00:24]} Ra3+ {[%emt 0:00:19]} 51. Ke4 {[%emt 0:00:33]} Rxh3 {[%emt 0:01:07]} 0-1

[Event "Polish Youth G16 Championship 2023"]
[Site "Jastrzebia Gora"]
[Date "2023.03.18"]
[Round "8.9"]
[White "Zielinska, Aleksandra"]
[Black "Nieckarz, Maja"]
[Result "0-1"]
[ECO "B20"]
[WhiteElo "1613"]
[BlackElo "1493"]
[Annotator "NA RC COMBH"]
[PlyCount "90"]
[EventDate "2023.03.11"]
[EventType "swiss"]
[EventCountry "POL"]
[SourceTitle "playchess.com"]
[Source "ChessBase"]
[SourceQuality "1"]
[TimeControl "40/5400+30:1800+30"]

1. e4 {[%emt 0:00:02]} c5 {[%emt 0:00:07]} 2. Ne2 {[%emt 0:00:05]} d6 {[%emt 0:00:13]} 3. g3 {[%emt 0:00:11]} Nc6 {[%emt 0:01:49]} 4. Bg2 {[%emt 0:00:41]} g6 {[%emt 0:00:51]} 5. c3 {[%emt 0:01:02]} Bg7 {[%emt 0:03:29]} 6. d4 {[%emt 0:00:42]} cxd4 {[%emt 0:00:05]} 7. cxd4 {[%emt 0:00:06]} Bg4 {[%emt 0:01:46]} 8. f3 {[%emt 0:01:33]} Bd7 {[%emt 0:00:06]} 9. Be3 {[%emt 0:01:53]} Nf6 {[%emt 0:00:41]} 10. O-O {[%emt 0:02:26]} O-O {[%emt 0:00:08]} 11. Nbc3 {[%emt 0:00:08]} Na5 {[%emt 0:01:40]} 12. b3 {[%emt 0:03:15]} Bc6 {[%emt 0:01:29]} 13. Rc1 {[%emt 0:06:11]} b5 {[%emt 0:12:36]} 14. d5 {[%emt 0:08:49]} Bd7 {[%emt 0:01:35]} 15. Nd4 {[%emt 0:01:33]} b4 {[%emt 0:03:04]} 16. Ncb5 {[%emt 0:09:32]} Ne8 {[%emt 0:09:33]} 17. Nc6 {[%emt 0:03:19]} Bxc6 {[%emt 0:00:51]} 18. dxc6 {[%emt 0:00:08]} a6 {[%emt 0:02:00]} 19. c7 {[%emt 0:24:39]} Qd7 {[%emt 0:01:12]} 20. Bb6 {[%emt 0:05:38]} axb5 {[%emt 0:24:50]} 21. Bxa5 {[%emt 0:00:36]} Bc3 {[%emt 0:00:25]} 22. Bb6 {[%emt 0:04:38]} Nxc7 {[%emt 0:01:34]} 23. Qe2 {[%emt 0:04:41]} Ne6 {[%emt 0:01:50]} 24. Rfd1 {[%emt 0:01:47]} Ra6 {[%emt 0:05:18]} 25. Be3 {[%emt 0:01:25]} Rb8 {[%emt 0:10:40]} 26. f4 {[%emt 0:01:43]} Qc7 {[%emt 0:00:47]} 27. Rc2 {[%emt 0:04:01]} Ra3 {[%emt 0:03:45]} 28. Rd3 {[%emt 0:08:51]} Qa5 {[%emt 0:02:47]} 29. f5 {[%emt 0:04:24]} Nc5 {[%emt 0:01:16]} 30. Bxc5 {[%emt 0:00:38]} dxc5 {[%emt 0:00:04]} 31. fxg6 {[%emt 0:00:34]} hxg6 {[%emt 0:00:08]} 32. e5 {[%emt 0:00:36]} Bd4+ {[%emt 0:01:11]} 33. Kf1 {[%emt 0:00:22]} Rb6 {[%emt 0:00:17]} 34. Bf3 {[%emt 0:00:44]} Re6 {[%emt 0:00:36]} 35. Qd1 {[%emt 0:01:05]} Rxa2 {[%emt 0:00:10]} 36. Rxd4 {[%emt 0:00:00]} cxd4 {[%emt 0:00:33]} 37. Rc8+ {[%emt 0:00:23]} Kg7 {[%emt 0:00:04]} 38. Ra8 {[%emt 0:00:34]} Ra6 {[%emt 0:02:15]} 39. Rxa6 {[%emt 0:00:15]} Qxa6 {[%emt 0:00:04]} 40. Qxd4 {[%emt 0:00:00]} Qa7 {[%emt 0:00:00]} 41. Qxa7 {[%emt 0:01:46]} Rxa7 {[%emt 0:00:49]} 42. h4 {[%emt 0:08:28]} Ra1+ {[%emt 0:00:13]} 43. Kf2 {[%emt 0:00:51]} Rb1 {[%emt 0:00:08]} 44. Bc6 {[%emt 0:00:25]} Rxb3 {[%emt 0:00:07]} 45. Bxb5 {[%emt 0:00:07]} Rc3 {[%emt 0:00:06]} 0-1

[Event "Polish Youth G16 Championship 2023"]
[Site "Jastrzebia Gora"]
[Date "2023.03.18"]
[Round "8.10"]
[White "Pniewska, Beata"]
[Black "Sprzeczka, Emilia"]
[Result "0-1"]
[ECO "A10"]
[WhiteElo "1448"]
[BlackElo "1887"]
[Annotator "NA RC COMBH"]
[PlyCount "86"]
[EventDate "2023.03.11"]
[EventType "swiss"]
[EventCountry "POL"]
[SourceTitle "playchess.com"]
[Source "ChessBase"]
[SourceQuality "1"]
[TimeControl "40/5400+30:1800+30"]

1. c4 {[%emt 0:00:03]} g6 {[%emt 0:00:10]} 2. g3 {[%emt 0:01:46]} Bg7 {[%emt 0:00:34]} 3. Bg2 {[%emt 0:01:20]} c5 {[%emt 0:02:58]} 4. e3 {[%emt 0:03:05]} Nc6 {[%emt 0:02:48]} 5. Ne2 {[%emt 0:02:08]} e5 {[%emt 0:10:16]} 6. Nbc3 {[%emt 0:02:36]} Nge7 {[%emt 0:01:31]} 7. Nb5 {[%emt 0:03:54]} (7. a3 {was preferrable.}) 7... d6 $1 {[%emt 0:04:57]} 8. d4 {[%emt 0:05:10]} (8. Nbc3 $11) 8... cxd4 {[%emt 0:02:48]} (8... a6 $17 9. Nbc3 exd4 10. exd4 Nxd4) 9. exd4 {[%emt 0:00:34]} a6 {[%emt 0:06:57]} 10. d5 {[%emt 0:07:38]} axb5 {[%emt 0:06:19]} 11. dxc6 {[%emt 0:00:28]} Nxc6 {[%emt 0:03:51]} 12. cxb5 {[%emt 0:02:04]} Ne7 {[%emt 0:07:29]} 13. Nc3 {[%emt 0:02:48]} O-O {[%emt 0:01:16]} 14. Bg5 {[%emt 0:01:38]} f6 {[%emt 0:08:46]} 15. Qb3+ {[%emt 0:04:27]} (15. Be3 {should be considered.}) 15... Kh8 {[%emt 0:00:43]} 16. Bd2 {[%emt 0:06:27]} Nf5 {[%emt 0:03:34]} 17. Ne2 {[%emt 0:01:26]} Re8 {[%emt 0:02:35]} ({Resist} 17... Nd4 18. Nxd4 exd4 19. O-O $16) 18. O-O {[%emt 0:02:22]} Be6 {[%emt 0:01:33]} 19. Bd5 {[%emt 0:02:15]} Qd7 {[%emt 0:04:12]} 20. Rac1 {[%emt 0:01:54]} Bxd5 {[%emt 0:01:13]} 21. Qxd5 {[%emt 0:00:10]} Ne7 $1 {[%emt 0:02:56]} 22. Qb3 {[%emt 0:02:40]} d5 $15 {[%emt 0:01:38]} 23. Nc3 {[%emt 0:02:24]} b6 {[%emt 0:02:37]} 24. Na4 {[%emt 0:01:56]} Qa7 {[%emt 0:01:29]} 25. Nc3 {[%emt 0:01:33]} Qd7 {[%emt 0:00:59]} 26. Na4 {[%emt 0:00:44]} Rab8 {[%emt 0:00:42]} 27. Rfd1 {[%emt 0:03:27]} d4 {[%emt 0:00:55]} 28. Be3 {[%emt 0:01:09]} Qa7 {[%emt 0:00:36]} 29. Bxd4 {[%emt 0:02:54]} exd4 {[%emt 0:00:10]} 30. Rxd4 {[%emt 0:00:06]} Nf5 {[%emt 0:01:28]} 31. Rdc4 {[%emt 0:00:49]} Rb7 {[%emt 0:01:29]} 32. Rc8 {[%emt 0:01:08]} Rbe7 {[%emt 0:05:10]} 33. R1c7 {[%emt 0:01:41]} Qa5 {[%emt 0:00:20]} 34. Rxe8+ {[%emt 0:03:32]} Rxe8 {[%emt 0:00:08]} 35. Qf7 {[%emt 0:00:44]} Qe1+ {[%emt 0:01:06]} 36. Kg2 {[%emt 0:00:20]} Ne3+ {[%emt 0:05:22]} 37. fxe3 {[%emt 0:00:34]} Qe2+ {[%emt 0:00:08]} 38. Kg1 {[%emt 0:04:01]} Qxe3+ {[%emt 0:00:06]} 39. Kg2 {[%emt 0:00:25]} Qe2+ {[%emt 0:00:12]} 40. Kg1 {[%emt 0:00:00]} Qe1+ {[%emt 0:00:00]} 41. Kg2 {[%emt 0:00:42]} Re2+ {[%emt 0:00:13]} 42. Kh3 {[%emt 0:00:14]} Qf1+ {[%emt 0:00:08]} 43. Kh4 {[%emt 0:00:35]} Rxh2+ {[%emt 0:00:08]} 0-1

[Event "Polish Youth G16 Championship 2023"]
[Site "Jastrzebia Gora"]
[Date "2023.03.18"]
[Round "8.11"]
[White "Kicinska, Magdalena"]
[Black "Kaczmarek, Paulina"]
[Result "0-1"]
[ECO "A65"]
[WhiteElo "1573"]
[BlackElo "1317"]
[Annotator "NA RC COMBH"]
[PlyCount "88"]
[EventDate "2023.03.11"]
[EventType "swiss"]
[EventCountry "POL"]
[SourceTitle "playchess.com"]
[Source "ChessBase"]
[SourceQuality "1"]
[TimeControl "40/5400+30:1800+30"]

1. d4 {[%emt 0:00:02]} c5 {[%emt 0:00:45]} 2. d5 {[%emt 0:00:18]} e6 {[%emt 0:01:08]} 3. c4 {[%emt 0:00:28]} Nf6 {[%emt 0:00:10]} 4. Nc3 {[%emt 0:00:12]} exd5 {[%emt 0:00:18]} 5. cxd5 {[%emt 0:00:46]} d6 {[%emt 0:00:20]} 6. e4 {[%emt 0:02:06]} a6 {[%emt 0:02:06]} 7. a4 {[%emt 0:01:48]} g6 {[%emt 0:00:17]} 8. Nf3 {[%emt 0:02:11]} Bg4 {[%emt 0:00:19]} 9. Bc4 {[%emt 0:03:21]} Bxf3 {[%emt 0:05:27]} 10. Qxf3 {[%emt 0:00:11]} Bg7 {[%emt 0:00:11]} 11. O-O {[%emt 0:02:47]} O-O {[%emt 0:00:56]} 12. Bf4 {[%emt 0:04:23]} Qc7 {[%emt 0:03:49]} 13. Rfe1 {[%emt 0:04:15]} Nbd7 {[%emt 0:02:08]} 14. Qg3 {[%emt 0:05:13]} Ne5 {[%emt 0:05:27]} 15. Bxe5 {[%emt 0:00:57]} dxe5 {[%emt 0:00:05]} 16. Rac1 {[%emt 0:08:22]} Rfd8 {[%emt 0:04:56]} 17. Red1 {[%emt 0:10:34]} Rac8 {[%emt 0:13:03]} 18. Qd3 {[%emt 0:06:12]} Ne8 {[%emt 0:00:58]} 19. Ne2 {[%emt 0:05:16]} Nd6 {[%emt 0:01:54]} 20. b4 {[%emt 0:09:25]} Bh6 {[%emt 0:08:34]} 21. f4 {[%emt 0:05:10]} cxb4 {[%emt 0:07:46]} 22. Bb3 {[%emt 0:01:26]} Qb6+ {[%emt 0:00:34]} 23. Kh1 {[%emt 0:00:47]} Bg7 {[%emt 0:05:03]} 24. fxe5 {[%emt 0:05:57]} Bxe5 {[%emt 0:00:25]} 25. Ng1 {[%emt 0:00:40]} Bf4 {[%emt 0:04:14]} 26. Rxc8 {[%emt 0:02:26]} Rxc8 {[%emt 0:00:11]} 27. Nf3 {[%emt 0:00:45]} Rc3 {[%emt 0:01:11]} 28. Qb1 {[%emt 0:00:37]} Qe3 {[%emt 0:02:02]} 29. Bc2 {[%emt 0:00:41]} b3 {[%emt 0:03:19]} 30. Bd3 {[%emt 0:01:01]} b2 {[%emt 0:00:46]} 31. Qxb2 {[%emt 0:01:32]} Rxd3 {[%emt 0:00:42]} 32. Re1 {[%emt 0:00:44]} Qc5 {[%emt 0:04:13]} 33. e5 {[%emt 0:00:53]} Nc4 {[%emt 0:03:04]} 34. Qxb7 {[%emt 0:00:48]} Qxd5 {[%emt 0:00:58]} 35. Qc8+ {[%emt 0:01:13]} Kg7 {[%emt 0:01:26]} 36. Qxa6 {[%emt 0:03:38]} Nxe5 {[%emt 0:03:02]} 37. Nxe5 {[%emt 0:01:28]} Qxe5 {[%emt 0:00:42]} 38. Rf1 {[%emt 0:02:53]} Re3 {[%emt 0:00:53]} 39. Qc4 {[%emt 0:01:02]} Re1 {[%emt 0:01:57]} 40. g3 {[%emt 0:00:00]} Rxf1+ {[%emt 0:00:00]} 41. Qxf1 {[%emt 0:00:36]} Qe4+ {[%emt 0:00:45]} 42. Qg2 {[%emt 0:00:30]} Qe1+ {[%emt 0:02:44]} 43. Qg1 {[%emt 0:00:08]} Bd2 {[%emt 0:00:36]} 44. Kg2 {[%emt 0:00:56]} Qxg1+ {[%emt 0:00:07]} 0-1